[Event "Titled Tuesday Blitz February 07 Early 2023"]
[White "Zemlyanskii, Ivan"]
[Black "Richter, Paul"]
[WhiteFideId "24249971"]
[BlackFideId "2046350"]
[WhiteElo "2300"]
[BlackElo "2171"]
[Result "1-0"]
[Round "04"]
[TimeControl "180+2"]
[Date "2023.02.07"]
[WhiteClock "0:00:31"]
[BlackClock "0:00:01"]

1. d4 {[%clk 0:03:00]}  Nf6 {[%clk 0:02:59]} 2. c4 {[%clk 0:03:00]}  g6 {[%clk 0:02:59]} 3. h4 {[%clk 0:03:00]}  h5 {[%clk 0:02:58]} 4. Nc3 {[%clk 0:02:56]}  Bg7 {[%clk 0:02:57]} 5. e4 {[%clk 0:02:51]}  d6 {[%clk 0:02:57]} 6. Be2 {[%clk 0:02:50]}  O-O {[%clk 0:02:46]} 7. Bg5 {[%clk 0:02:51]}  c5 {[%clk 0:01:51]} 8. d5 {[%clk 0:02:47]}  Qa5 {[%clk 0:01:41]} 9. Qd2 {[%clk 0:02:46]}  Re8 {[%clk 0:01:32]} 10. Nf3 {[%clk 0:02:28]}  e6 {[%clk 0:01:28]} 11. O-O {[%clk 0:02:20]}  exd5 {[%clk 0:01:26]} 12. exd5 {[%clk 0:02:02]}  Bg4 {[%clk 0:01:01]} 13. Bxf6 {[%clk 0:01:32]}  Bxf6 {[%clk 0:01:02]} 14. Ne4 {[%clk 0:01:33]}  Qd8 {[%clk 0:01:01]} 15. Qf4 {[%clk 0:01:30]}  Be7 {[%clk 0:00:15]} 16. Nfg5 {[%clk 0:01:26]}  Bf5 {[%clk 0:00:09]} 17. Bxh5 {[%clk 0:01:16]}  Bxg5 {[%clk 0:00:04]} 18. Nxg5 {[%clk 0:01:12]}  Qf6 {[%clk 0:00:02]} 19. Bf3 {[%clk 0:01:00]}  Qe5 {[%clk 0:00:02]} 20. Qd2 {[%clk 0:00:44]}  Nd7 {[%clk 0:00:02]} 21. g4 {[%clk 0:00:38]}  Bxg4 {[%clk 0:00:01]} 22. Bxg4 {[%clk 0:00:38]}  Nf6 {[%clk 0:00:02]} 23. Bf3 {[%clk 0:00:35]}  Kg7 {[%clk 0:00:02]} 24. Rae1 {[%clk 0:00:36]}  Qf5 {[%clk 0:00:01]} 25. Bg2 {[%clk 0:00:34]}  Rh8 {[%clk 0:00:01]} 26. Ne4 {[%clk 0:00:32]}  Rxh4 {[%clk 0:00:01]} 27. Qc3 {[%clk 0:00:31]} 1-0


[Site "https://www.chess.com"]

[Event "Titled Tuesday Blitz February 07 Early 2023"]
[White "De Vreugt, Dennis"]
[Black "Salimova, Nurgyul"]
[WhiteFideId "1003909"]
[BlackFideId "2915138"]
[WhiteElo "2392"]
[BlackElo "2391"]
[Result "0-1"]
[Round "04"]
[TimeControl "180+2"]
[Date "2023.02.07"]
[WhiteClock "0:00:01"]
[BlackClock "0:00:08"]

1. e4 {[%clk 0:03:00]}  e5 {[%clk 0:02:56]} 2. Nf3 {[%clk 0:03:00]}  Nc6 {[%clk 0:02:56]} 3. Bc4 {[%clk 0:02:58]}  Nf6 {[%clk 0:02:56]} 4. d3 {[%clk 0:02:58]}  Bc5 {[%clk 0:02:54]} 5. c3 {[%clk 0:02:58]}  d6 {[%clk 0:02:50]} 6. Bb3 {[%clk 0:02:53]}  h6 {[%clk 0:02:32]} 7. Nbd2 {[%clk 0:02:52]}  Bb6 {[%clk 0:02:23]} 8. h3 {[%clk 0:02:46]}  Be6 {[%clk 0:02:20]} 9. Nf1 {[%clk 0:02:28]}  d5 {[%clk 0:02:14]} 10. Qe2 {[%clk 0:02:24]}  Qd7 {[%clk 0:01:50]} 11. Ng3 {[%clk 0:02:20]}  dxe4 {[%clk 0:01:13]} 12. dxe4 {[%clk 0:02:18]}  Bxb3 {[%clk 0:01:09]} 13. axb3 {[%clk 0:02:18]}  O-O-O {[%clk 0:00:57]} 14. b4 {[%clk 0:02:16]}  Qe6 {[%clk 0:00:54]} 15. Be3 {[%clk 0:02:10]}  Bxe3 {[%clk 0:00:47]} 16. Qxe3 {[%clk 0:02:09]}  Qc4 {[%clk 0:00:42]} 17. b3 {[%clk 0:01:07]}  Qxb3 {[%clk 0:00:27]} 18. O-O {[%clk 0:01:06]}  Qc4 {[%clk 0:00:17]} 19. b5 {[%clk 0:01:02]}  Qxb5 {[%clk 0:00:15]} 20. Rfb1 {[%clk 0:01:02]}  Qd3 {[%clk 0:00:15]} 21. Qc5 {[%clk 0:00:57]}  Nxe4 {[%clk 0:00:07]} 22. Nxe4 {[%clk 0:00:49]}  Qxe4 {[%clk 0:00:08]} 23. Qb5 {[%clk 0:00:28]}  b6 {[%clk 0:00:09]} 24. c4 {[%clk 0:00:26]}  a5 {[%clk 0:00:03]} 25. Qa6+ {[%clk 0:00:23]}  Kb8 {[%clk 0:00:03]} 26. c5 {[%clk 0:00:21]}  Nb4 {[%clk 0:00:03]} 27. cxb6 {[%clk 0:00:20]}  Nxa6 {[%clk 0:00:03]} 28. bxc7+ {[%clk 0:00:19]}  Kxc7 {[%clk 0:00:04]} 29. Re1 {[%clk 0:00:17]}  Qb7 {[%clk 0:00:03]} 30. Rac1+ {[%clk 0:00:15]}  Kb8 {[%clk 0:00:03]} 31. Nxe5 {[%clk 0:00:13]}  Nb4 {[%clk 0:00:04]} 32. Rc5 {[%clk 0:00:12]}  Rhe8 {[%clk 0:00:04]} 33. Rxa5 {[%clk 0:00:11]}  Re6 {[%clk 0:00:04]} 34. Rea1 {[%clk 0:00:10]}  f6 {[%clk 0:00:04]} 35. Nc4 {[%clk 0:00:09]}  Rc8 {[%clk 0:00:04]} 36. Ne3 {[%clk 0:00:07]}  Ra6 {[%clk 0:00:04]} 37. Rxa6 {[%clk 0:00:04]}  Nxa6 {[%clk 0:00:05]} 38. Nf5 {[%clk 0:00:03]}  Nb4 {[%clk 0:00:05]} 39. Nd6 {[%clk 0:00:03]}  Qc6 {[%clk 0:00:05]} 40. Nxc8 {[%clk 0:00:03]}  Qxc8 {[%clk 0:00:06]} 41. Rb1 {[%clk 0:00:03]}  Qc3 {[%clk 0:00:07]} 42. Kh2 {[%clk 0:00:01]}  Kc7 {[%clk 0:00:07]} 43. f4 {[%clk 0:00:02]}  Nd3 {[%clk 0:00:07]} 44. f5 {[%clk 0:00:01]}  Qe5+ {[%clk 0:00:07]} 45. g3 {[%clk 0:00:01]}  Qxf5 {[%clk 0:00:08]} 0-1


[Site "https://www.chess.com"]

[Event "Titled Tuesday Blitz February 07 Early 2023"]
[White "Bagwe Gaurang"]
[Black "Mastrovasilis, Athanasios"]
[WhiteFideId "45039895"]
[BlackFideId "4201990"]
[WhiteElo "2067"]
[BlackElo "2497"]
[Result "1/2-1/2"]
[Round "04"]
[TimeControl "180+2"]
[Date "2023.02.07"]
[WhiteClock "0:00:14"]
[BlackClock "0:00:25"]

1. e4 {[%clk 0:03:00]}  c5 {[%clk 0:02:59]} 2. Nf3 {[%clk 0:02:59]}  g6 {[%clk 0:02:59]} 3. g3 {[%clk 0:02:55]}  Bg7 {[%clk 0:02:59]} 4. Bg2 {[%clk 0:02:55]}  Nc6 {[%clk 0:02:59]} 5. O-O {[%clk 0:02:56]}  e5 {[%clk 0:02:59]} 6. b3 {[%clk 0:02:45]}  Nge7 {[%clk 0:02:58]} 7. Bb2 {[%clk 0:02:45]}  O-O {[%clk 0:02:56]} 8. Na3 {[%clk 0:02:45]}  f5 {[%clk 0:02:50]} 9. exf5 {[%clk 0:02:41]}  gxf5 {[%clk 0:02:48]} 10. Qc1 {[%clk 0:02:02]}  d5 {[%clk 0:02:41]} 11. Re1 {[%clk 0:01:59]}  d4 {[%clk 0:02:37]} 12. d3 {[%clk 0:01:55]}  Ng6 {[%clk 0:02:30]} 13. c3 {[%clk 0:01:51]}  Kh8 {[%clk 0:02:27]} 14. cxd4 {[%clk 0:01:50]}  cxd4 {[%clk 0:02:26]} 15. Nc4 {[%clk 0:01:48]}  Be6 {[%clk 0:02:02]} 16. Ba3 {[%clk 0:01:47]}  Bxc4 {[%clk 0:01:26]} 17. Qxc4 {[%clk 0:01:05]}  Re8 {[%clk 0:01:22]} 18. Ng5 {[%clk 0:01:05]}  Qxg5 {[%clk 0:01:21]} 19. Qf7 {[%clk 0:01:01]}  e4 {[%clk 0:01:11]} 20. dxe4 {[%clk 0:00:56]}  f4 {[%clk 0:01:11]} 21. Qxb7 {[%clk 0:00:51]}  Nce5 {[%clk 0:01:09]} 22. Bc1 {[%clk 0:00:50]}  Nd3 {[%clk 0:00:56]} 23. Rd1 {[%clk 0:00:50]}  Nxc1 {[%clk 0:00:50]} 24. Raxc1 {[%clk 0:00:49]}  Be5 {[%clk 0:00:39]} 25. Rc5 {[%clk 0:00:47]}  Qf6 {[%clk 0:00:37]} 26. Rc6 {[%clk 0:00:38]}  Qe7 {[%clk 0:00:32]} 27. Qa6 {[%clk 0:00:38]}  Rad8 {[%clk 0:00:30]} 28. Qc4 {[%clk 0:00:28]}  Qg7 {[%clk 0:00:24]} 29. Rd3 {[%clk 0:00:27]}  Rf8 {[%clk 0:00:23]} 30. a4 {[%clk 0:00:19]}  Rd7 {[%clk 0:00:22]} 31. a5 {[%clk 0:00:19]}  Rdf7 {[%clk 0:00:22]} 32. g4 {[%clk 0:00:17]}  f3 {[%clk 0:00:20]} 33. Bf1 {[%clk 0:00:14]}  Nh4 {[%clk 0:00:15]} 34. h3 {[%clk 0:00:14]}  Qg5 {[%clk 0:00:14]} 35. Qc1 {[%clk 0:00:13]}  Qxc1 {[%clk 0:00:07]} 36. Rxc1 {[%clk 0:00:14]}  Rb8 {[%clk 0:00:07]} 37. Rc5 {[%clk 0:00:14]}  Bg7 {[%clk 0:00:06]} 38. a6 {[%clk 0:00:12]}  Ng6 {[%clk 0:00:06]} 39. Rd5 {[%clk 0:00:09]}  Re7 {[%clk 0:00:06]} 40. Rxf3 {[%clk 0:00:08]}  Rbe8 {[%clk 0:00:05]} 41. Bd3 {[%clk 0:00:08]}  Ne5 {[%clk 0:00:06]} 42. Rg3 {[%clk 0:00:06]}  Nxd3 {[%clk 0:00:07]} 43. Rxd3 {[%clk 0:00:07]}  Rxe4 {[%clk 0:00:07]} 44. Rd7 {[%clk 0:00:08]}  Re1+ {[%clk 0:00:07]} 45. Kg2 {[%clk 0:00:08]}  R1e7 {[%clk 0:00:08]} 46. Rd6 {[%clk 0:00:08]}  h6 {[%clk 0:00:08]} 47. b4 {[%clk 0:00:05]}  Re6 {[%clk 0:00:08]} 48. Rxe6 {[%clk 0:00:06]}  Rxe6 {[%clk 0:00:09]} 49. b5 {[%clk 0:00:07]}  Rb6 {[%clk 0:00:09]} 50. Rb3 {[%clk 0:00:06]}  Kg8 {[%clk 0:00:10]} 51. Kf3 {[%clk 0:00:06]}  Kf7 {[%clk 0:00:11]} 52. Ke4 {[%clk 0:00:07]}  Ke6 {[%clk 0:00:12]} 53. f4 {[%clk 0:00:07]}  Kd6 {[%clk 0:00:13]} 54. h4 {[%clk 0:00:06]}  Kc5 {[%clk 0:00:13]} 55. g5 {[%clk 0:00:06]}  hxg5 {[%clk 0:00:13]} 56. hxg5 {[%clk 0:00:07]}  Kc4 {[%clk 0:00:13]} 57. Rb1 {[%clk 0:00:06]}  d3 {[%clk 0:00:14]} 58. f5 {[%clk 0:00:05]}  Bc3 {[%clk 0:00:13]} 59. f6 {[%clk 0:00:05]}  Bxf6 {[%clk 0:00:12]} 60. gxf6 {[%clk 0:00:05]}  Rxf6 {[%clk 0:00:13]} 61. Rc1+ {[%clk 0:00:06]}  Kxb5 {[%clk 0:00:12]} 62. Kxd3 {[%clk 0:00:06]}  Rxa6 {[%clk 0:00:12]} 63. Rb1+ {[%clk 0:00:06]}  Kc5 {[%clk 0:00:13]} 64. Kc2 {[%clk 0:00:06]}  Ra2+ {[%clk 0:00:13]} 65. Kb3 {[%clk 0:00:06]}  Ra5 {[%clk 0:00:13]} 66. Rc1+ {[%clk 0:00:06]}  Kb6 {[%clk 0:00:13]} 67. Rh1 {[%clk 0:00:07]}  Rb5+ {[%clk 0:00:14]} 68. Ka2 {[%clk 0:00:07]}  a5 {[%clk 0:00:14]} 69. Rb1 {[%clk 0:00:06]}  Kc5 {[%clk 0:00:15]} 70. Rxb5+ {[%clk 0:00:06]}  Kxb5 {[%clk 0:00:16]} 71. Kb3 {[%clk 0:00:07]}  a4+ {[%clk 0:00:17]} 72. Ka3 {[%clk 0:00:08]}  Ka5 {[%clk 0:00:18]} 73. Ka2 {[%clk 0:00:09]}  Kb5 {[%clk 0:00:19]} 74. Ka3 {[%clk 0:00:10]}  Ka5 {[%clk 0:00:19]} 75. Ka2 {[%clk 0:00:11]}  Kb4 {[%clk 0:00:20]} 76. Kb2 {[%clk 0:00:11]}  a3+ {[%clk 0:00:21]} 77. Ka2 {[%clk 0:00:12]}  Ka4 {[%clk 0:00:22]} 78. Ka1 {[%clk 0:00:13]}  Kb3 {[%clk 0:00:23]} 79. Kb1 {[%clk 0:00:13]}  a2+ {[%clk 0:00:24]} 80. Ka1 {[%clk 0:00:14]}  Ka3 {[%clk 0:00:25]} 1/2-1/2


[Site "https://www.chess.com"]

[Event "Titled Tuesday Blitz February 07 Early 2023"]
[White "Tan, Zhongyi"]
[Black "Ilkhomi, Jaloliddin"]
[WhiteFideId "8603642"]
[BlackFideId "14700948"]
[WhiteElo "2517"]
[BlackElo "1997"]
[Result "0-1"]
[Round "04"]
[TimeControl "180+2"]
[Date "2023.02.07"]
[WhiteClock "0:00:06"]
[BlackClock "0:00:10"]

1. d4 {[%clk 0:03:00]}  Nf6 {[%clk 0:02:59]} 2. c4 {[%clk 0:03:00]}  e6 {[%clk 0:02:58]} 3. g3 {[%clk 0:03:01]}  Bb4+ {[%clk 0:02:57]} 4. Nd2 {[%clk 0:02:59]}  Ne4 {[%clk 0:02:56]} 5. Bg2 {[%clk 0:02:57]}  f5 {[%clk 0:02:57]} 6. Nh3 {[%clk 0:02:52]}  b6 {[%clk 0:02:50]} 7. O-O {[%clk 0:02:51]}  Bxd2 {[%clk 0:02:45]} 8. Bxd2 {[%clk 0:02:50]}  Bb7 {[%clk 0:02:43]} 9. d5 {[%clk 0:02:37]}  Nxd2 {[%clk 0:02:41]} 10. Qxd2 {[%clk 0:02:38]}  O-O {[%clk 0:02:37]} 11. Rfd1 {[%clk 0:02:22]}  e5 {[%clk 0:02:31]} 12. Rac1 {[%clk 0:02:15]}  d6 {[%clk 0:02:09]} 13. Ng5 {[%clk 0:02:14]}  Qe7 {[%clk 0:02:02]} 14. Ne6 {[%clk 0:02:14]}  Rc8 {[%clk 0:01:59]} 15. Bh3 {[%clk 0:02:10]}  Qf6 {[%clk 0:01:48]} 16. e4 {[%clk 0:02:08]}  fxe4 {[%clk 0:01:20]} 17. Ng5 {[%clk 0:02:07]}  Rf8 {[%clk 0:01:17]} 18. Be6+ {[%clk 0:02:06]}  Kh8 {[%clk 0:01:16]} 19. Nxe4 {[%clk 0:01:56]}  Qe7 {[%clk 0:01:15]} 20. h4 {[%clk 0:00:53]}  Bc8 {[%clk 0:01:12]} 21. Ng5 {[%clk 0:00:52]}  Bxe6 {[%clk 0:00:52]} 22. dxe6 {[%clk 0:00:44]}  Nc6 {[%clk 0:00:51]} 23. Qd3 {[%clk 0:00:29]}  g6 {[%clk 0:00:46]} 24. Qe3 {[%clk 0:00:25]}  Nd4 {[%clk 0:00:38]} 25. Rxd4 {[%clk 0:00:23]}  exd4 {[%clk 0:00:39]} 26. Qxd4+ {[%clk 0:00:23]}  Qf6 {[%clk 0:00:28]} 27. Qe3 {[%clk 0:00:19]}  Rae8 {[%clk 0:00:26]} 28. Re1 {[%clk 0:00:19]}  Kg7 {[%clk 0:00:18]} 29. Qd2 {[%clk 0:00:13]}  h6 {[%clk 0:00:14]} 30. Nf7 {[%clk 0:00:13]}  Rxe6 {[%clk 0:00:10]} 31. Qxh6+ {[%clk 0:00:07]}  Kxf7 {[%clk 0:00:09]} 32. Qh7+ {[%clk 0:00:08]}  Ke8 {[%clk 0:00:06]} 33. Rxe6+ {[%clk 0:00:06]}  Qxe6 {[%clk 0:00:07]} 34. Qxc7 {[%clk 0:00:07]}  Qe1+ {[%clk 0:00:08]} 35. Kg2 {[%clk 0:00:06]}  Qxf2+ {[%clk 0:00:08]} 36. Kh3 {[%clk 0:00:07]}  Qf1+ {[%clk 0:00:09]} 37. Kg4 {[%clk 0:00:06]}  Qf5# {[%clk 0:00:10]} 0-1


[Site "https://www.chess.com"]

[Event "Titled Tuesday Blitz February 07 Early 2023"]
[White "Oro, Faustino"]
[Black "Mortazavi, Ali"]
[WhiteFideId "20000197"]
[BlackFideId "401323"]
[WhiteElo "2269"]
[BlackElo "2333"]
[Result "1-0"]
[Round "04"]
[TimeControl "180+2"]
[Date "2023.02.07"]
[WhiteClock "0:00:29"]
[BlackClock "0:00:11"]

1. e4 {[%clk 0:03:00]}  c6 {[%clk 0:02:51]} 2. d4 {[%clk 0:03:00]}  d5 {[%clk 0:02:51]} 3. e5 {[%clk 0:03:00]}  Bf5 {[%clk 0:02:51]} 4. h4 {[%clk 0:03:00]}  c5 {[%clk 0:02:51]} 5. dxc5 {[%clk 0:02:59]}  Nc6 {[%clk 0:02:49]} 6. Nf3 {[%clk 0:02:55]}  e6 {[%clk 0:02:47]} 7. Be3 {[%clk 0:02:54]}  Bg4 {[%clk 0:02:44]} 8. c3 {[%clk 0:02:52]}  Nge7 {[%clk 0:02:43]} 9. Nbd2 {[%clk 0:02:46]}  Nf5 {[%clk 0:02:42]} 10. Bd4 {[%clk 0:02:44]}  Be7 {[%clk 0:02:36]} 11. Be2 {[%clk 0:02:37]}  O-O {[%clk 0:02:22]} 12. g3 {[%clk 0:02:27]}  f6 {[%clk 0:02:15]} 13. O-O {[%clk 0:01:59]}  fxe5 {[%clk 0:02:03]} 14. Nxe5 {[%clk 0:01:58]}  Nxe5 {[%clk 0:02:00]} 15. Bxg4 {[%clk 0:01:45]}  Nxg4 {[%clk 0:01:51]} 16. Qxg4 {[%clk 0:01:44]}  Bf6 {[%clk 0:01:51]} 17. Nf3 {[%clk 0:01:36]}  Qd7 {[%clk 0:01:48]} 18. Rae1 {[%clk 0:01:34]}  Rae8 {[%clk 0:01:48]} 19. Bxf6 {[%clk 0:01:32]}  Rxf6 {[%clk 0:01:47]} 20. Ne5 {[%clk 0:01:32]}  Qc7 {[%clk 0:01:44]} 21. b4 {[%clk 0:01:27]}  Ref8 {[%clk 0:01:38]} 22. Qg5 {[%clk 0:01:05]}  h6 {[%clk 0:01:18]} 23. Qg4 {[%clk 0:01:03]}  Qc8 {[%clk 0:01:09]} 24. h5 {[%clk 0:01:01]}  Qe8 {[%clk 0:01:06]} 25. Ng6 {[%clk 0:01:01]}  R8f7 {[%clk 0:01:06]} 26. Re5 {[%clk 0:00:57]}  Qb5 {[%clk 0:00:57]} 27. Rfe1 {[%clk 0:00:45]}  Qa6 {[%clk 0:00:51]} 28. Nf4 {[%clk 0:00:41]}  Qxa2 {[%clk 0:00:26]} 29. Rxe6 {[%clk 0:00:38]}  Rxe6 {[%clk 0:00:21]} 30. Rxe6 {[%clk 0:00:39]}  Ne7 {[%clk 0:00:17]} 31. Qh4 {[%clk 0:00:33]}  Qa1+ {[%clk 0:00:14]} 32. Kg2 {[%clk 0:00:32]}  Nf5 {[%clk 0:00:14]} 33. Re8+ {[%clk 0:00:32]}  Kh7 {[%clk 0:00:13]} 34. Qg4 {[%clk 0:00:31]}  Qb1 {[%clk 0:00:11]} 35. Qg6# {[%clk 0:00:29]} 1-0


[Site "https://www.chess.com"]

[Event "Titled Tuesday Blitz February 07 Early 2023"]
[White "Shohat, Yotam"]
[Black "Md, Imran"]
[WhiteFideId "2813955"]
[BlackFideId "25748580"]
[WhiteElo "2346"]
[BlackElo "2284"]
[Result "0-1"]
[Round "04"]
[TimeControl "180+2"]
[Date "2023.02.07"]
[WhiteClock "0:00:01"]
[BlackClock "0:00:22"]

1. e4 {[%clk 0:03:00]}  c5 {[%clk 0:02:58]} 2. Nf3 {[%clk 0:03:01]}  d6 {[%clk 0:02:57]} 3. Bb5+ {[%clk 0:03:01]}  Bd7 {[%clk 0:02:55]} 4. c4 {[%clk 0:03:00]}  Nf6 {[%clk 0:02:48]} 5. Nc3 {[%clk 0:03:00]}  e6 {[%clk 0:02:44]} 6. O-O {[%clk 0:02:59]}  a6 {[%clk 0:02:43]} 7. Bxd7+ {[%clk 0:02:54]}  Nbxd7 {[%clk 0:02:44]} 8. d4 {[%clk 0:02:53]}  cxd4 {[%clk 0:02:42]} 9. Qxd4 {[%clk 0:02:49]}  Qb6 {[%clk 0:02:39]} 10. Qxb6 {[%clk 0:02:36]}  Nxb6 {[%clk 0:02:40]} 11. b3 {[%clk 0:02:37]}  Rc8 {[%clk 0:02:36]} 12. Bb2 {[%clk 0:02:24]}  Nfd7 {[%clk 0:02:33]} 13. Rfd1 {[%clk 0:02:19]}  Rg8 {[%clk 0:02:30]} 14. a4 {[%clk 0:02:11]}  Nc5 {[%clk 0:02:24]} 15. a5 {[%clk 0:01:56]}  Nxb3 {[%clk 0:02:13]} 16. axb6 {[%clk 0:01:29]}  Nxa1 {[%clk 0:02:12]} 17. Rxa1 {[%clk 0:01:29]}  Rxc4 {[%clk 0:02:11]} 18. Ra4 {[%clk 0:00:56]}  Rxa4 {[%clk 0:02:05]} 19. Nxa4 {[%clk 0:00:57]}  g5 {[%clk 0:02:04]} 20. Nd2 {[%clk 0:00:39]}  Kd7 {[%clk 0:02:00]} 21. Nb3 {[%clk 0:00:33]}  Be7 {[%clk 0:01:52]} 22. Na5 {[%clk 0:00:31]}  Rb8 {[%clk 0:01:47]} 23. Kf1 {[%clk 0:00:27]}  h5 {[%clk 0:01:45]} 24. Ke2 {[%clk 0:00:27]}  g4 {[%clk 0:01:45]} 25. Kd3 {[%clk 0:00:25]}  Bd8 {[%clk 0:01:41]} 26. Bd4 {[%clk 0:00:23]}  h4 {[%clk 0:01:37]} 27. Ke3 {[%clk 0:00:15]}  Bg5+ {[%clk 0:01:32]} 28. Kd3 {[%clk 0:00:14]}  Be7 {[%clk 0:01:31]} 29. Ke3 {[%clk 0:00:13]}  f5 {[%clk 0:01:29]} 30. exf5 {[%clk 0:00:08]}  exf5 {[%clk 0:01:30]} 31. Kd3 {[%clk 0:00:05]}  Ke6 {[%clk 0:01:28]} 32. Nc3 {[%clk 0:00:05]}  Bd8 {[%clk 0:01:25]} 33. Ne2 {[%clk 0:00:05]}  Bg5 {[%clk 0:01:23]} 34. Nc3 {[%clk 0:00:02]}  h3 {[%clk 0:01:19]} 35. gxh3 {[%clk 0:00:02]}  gxh3 {[%clk 0:01:19]} 36. Ne2 {[%clk 0:00:03]}  Kd5 {[%clk 0:01:17]} 37. Nc3+ {[%clk 0:00:03]}  Ke6 {[%clk 0:01:17]} 38. Ne2 {[%clk 0:00:04]}  Kd7 {[%clk 0:01:10]} 39. Ng1 {[%clk 0:00:03]}  Bf4 {[%clk 0:01:08]} 40. Nxh3 {[%clk 0:00:03]}  Bxh2 {[%clk 0:01:08]} 41. Ng5 {[%clk 0:00:04]}  Bf4 {[%clk 0:01:00]} 42. Nf3 {[%clk 0:00:04]}  Ke6 {[%clk 0:00:57]} 43. Ne1 {[%clk 0:00:03]}  Be5 {[%clk 0:00:57]} 44. Nc2 {[%clk 0:00:02]}  Kd5 {[%clk 0:00:55]} 45. Ne3+ {[%clk 0:00:02]}  Ke6 {[%clk 0:00:55]} 46. Nec4 {[%clk 0:00:03]}  Bf4 {[%clk 0:00:43]} 47. Be3 {[%clk 0:00:03]}  Bxe3 {[%clk 0:00:41]} 48. Nxe3 {[%clk 0:00:04]}  f4 {[%clk 0:00:40]} 49. Nec4 {[%clk 0:00:04]}  Kd5 {[%clk 0:00:39]} 50. Kc3 {[%clk 0:00:03]}  Kc5 {[%clk 0:00:38]} 51. Nb2 {[%clk 0:00:02]}  Kxb6 {[%clk 0:00:36]} 52. Nac4+ {[%clk 0:00:03]}  Kc5 {[%clk 0:00:37]} 53. Nd3+ {[%clk 0:00:04]}  Kc6 {[%clk 0:00:36]} 54. Nxf4 {[%clk 0:00:04]}  b5 {[%clk 0:00:37]} 55. Na5+ {[%clk 0:00:05]}  Kd7 {[%clk 0:00:25]} 56. Nb3 {[%clk 0:00:06]}  Rc8+ {[%clk 0:00:25]} 57. Kd3 {[%clk 0:00:06]}  Rc4 {[%clk 0:00:26]} 58. Nd5 {[%clk 0:00:06]}  Rh4 {[%clk 0:00:26]} 59. f4 {[%clk 0:00:04]}  Rh3+ {[%clk 0:00:26]} 60. Ne3 {[%clk 0:00:05]}  Ke6 {[%clk 0:00:26]} 61. Ke4 {[%clk 0:00:03]}  d5+ {[%clk 0:00:24]} 62. Kd4 {[%clk 0:00:03]}  Rf3 {[%clk 0:00:22]} 63. Nc5+ {[%clk 0:00:03]}  Kd6 {[%clk 0:00:22]} 64. Nxa6 {[%clk 0:00:02]}  Rxf4+ {[%clk 0:00:22]} 65. Kd3 {[%clk 0:00:02]}  b4 {[%clk 0:00:21]} 66. Nc2 {[%clk 0:00:02]}  b3 {[%clk 0:00:22]} 67. Na3 {[%clk 0:00:01]}  Ra4 {[%clk 0:00:22]} 0-1


[Site "https://www.chess.com"]

[Event "Titled Tuesday Blitz February 07 Early 2023"]
[White "Gjestemoen-VonHirsch, Andre"]
[Black "Weetik, Vjacheslav"]
[WhiteFideId "1539531"]
[BlackFideId "4153472"]
[WhiteElo "2314"]
[BlackElo "2423"]
[Result "1-0"]
[Round "04"]
[TimeControl "180+2"]
[Date "2023.02.07"]
[WhiteClock "0:00:58"]
[BlackClock "0:00:05"]

1. d4 {[%clk 0:02:56]}  Nf6 {[%clk 0:02:58]} 2. Bf4 {[%clk 0:02:54]}  g6 {[%clk 0:02:46]} 3. Nc3 {[%clk 0:02:53]}  d5 {[%clk 0:02:45]} 4. e3 {[%clk 0:02:50]}  Bg7 {[%clk 0:02:45]} 5. h4 {[%clk 0:02:49]}  h6 {[%clk 0:02:40]} 6. Be2 {[%clk 0:02:44]}  a6 {[%clk 0:02:37]} 7. Nf3 {[%clk 0:02:43]}  c5 {[%clk 0:02:36]} 8. dxc5 {[%clk 0:02:41]}  Qa5 {[%clk 0:02:35]} 9. O-O {[%clk 0:02:40]}  Qxc5 {[%clk 0:02:31]} 10. Nd4 {[%clk 0:02:38]}  Nbd7 {[%clk 0:02:02]} 11. Nb3 {[%clk 0:02:37]}  Qc6 {[%clk 0:01:57]} 12. Bf3 {[%clk 0:02:34]}  e6 {[%clk 0:01:40]} 13. h5 {[%clk 0:02:28]}  Nxh5 {[%clk 0:01:23]} 14. Bxh5 {[%clk 0:02:26]}  gxh5 {[%clk 0:01:24]} 15. Nd4 {[%clk 0:02:17]}  Qc5 {[%clk 0:01:14]} 16. Qxh5 {[%clk 0:02:12]}  Qe7 {[%clk 0:01:10]} 17. Rfe1 {[%clk 0:02:04]}  Nf6 {[%clk 0:00:56]} 18. Qh3 {[%clk 0:01:44]}  Rg8 {[%clk 0:00:24]} 19. Be5 {[%clk 0:01:41]}  Bd7 {[%clk 0:00:17]} 20. Rad1 {[%clk 0:01:38]}  O-O-O {[%clk 0:00:16]} 21. e4 {[%clk 0:01:31]}  dxe4 {[%clk 0:00:09]} 22. Na4 {[%clk 0:01:06]}  Nd5 {[%clk 0:00:08]} 23. Qc3+ {[%clk 0:01:04]}  Bc6 {[%clk 0:00:06]} 24. Nb6+ {[%clk 0:00:57]}  Nxb6 {[%clk 0:00:05]} 25. Nxc6 {[%clk 0:00:58]} 1-0


[Site "https://www.chess.com"]